[Event "Late-Titled-Tuesday-Blitz-November-28-2023"]
[Site "Chess.com"]
[Date "2023.11.28"]
[Round "5"]
[White "JSPrepz"]
[Black "FairChess_on_YouTube"]
[Result "1/2-1/2"]
[WhiteElo "2862"]
[BlackElo "3078"]
[TimeControl "180+1"]
[EndTime "14:52:29 PST"]
[Termination "Game drawn by repetition"]

1. e4 {[%clk 0:03:00.9]} 1... e6 {[%clk 0:02:58.4]} 2. d4 {[%clk 0:02:57.4]}
2... d5 {[%clk 0:02:58.5]} 3. Nc3 {[%clk 0:02:57.9]} 3... Nf6 {[%clk 0:02:57.2]}
4. Bg5 {[%clk 0:02:57.3]} 4... Be7 {[%clk 0:02:55.1]} 5. e5 {[%clk 0:02:55.9]}
5... Nfd7 {[%clk 0:02:55.3]} 6. Bxe7 {[%clk 0:02:54.2]} 6... Qxe7 {[%clk
0:02:56.2]} 7. f4 {[%clk 0:02:49.4]} 7... c5 {[%clk 0:02:54.9]} 8. Nf3 {[%clk
0:02:48]} 8... Nc6 {[%clk 0:02:54.7]} 9. Qd2 {[%clk 0:02:44.2]} 9... a6 {[%clk
0:02:53.2]} 10. O-O-O {[%clk 0:02:42.5]} 10... c4 {[%clk 0:02:51.8]} 11. f5
{[%clk 0:02:41.3]} 11... b5 {[%clk 0:02:48.3]} 12. Ne2 {[%clk 0:02:35.9]} 12...
exf5 {[%clk 0:02:41.1]} 13. Nf4 {[%clk 0:02:34.2]} 13... Nb6 {[%clk 0:02:40.9]}
14. Nh5 {[%clk 0:02:21.7]} 14... O-O {[%clk 0:02:34.2]} 15. Qf4 {[%clk
0:01:48.9]} 15... c3 {[%clk 0:02:10.6]} 16. Qg3 {[%clk 0:01:42.1]} 16... cxb2+
{[%clk 0:02:09]} 17. Kb1 {[%clk 0:01:42.1]} 17... g6 {[%clk 0:02:03]} 18. Nf6+
{[%clk 0:01:42]} 18... Kg7 {[%clk 0:02:02.6]} 19. h4 {[%clk 0:01:08.5]} 19...
Na4 {[%clk 0:02:01.8]} 20. Ng5 {[%clk 0:00:56.2]} 20... Qb4 {[%clk 0:01:39]} 21.
Nxd5 {[%clk 0:00:54.9]} 21... Qa5 {[%clk 0:01:39.3]} 22. h5 {[%clk 0:00:50.5]}
22... Nb4 {[%clk 0:01:11.4]} 23. hxg6 {[%clk 0:00:50.8]} 23... Nxd5 {[%clk
0:00:53.5]} 24. Rxh7+ {[%clk 0:00:50.5]} 24... Kg8 {[%clk 0:00:54]} 25. Rh8+
{[%clk 0:00:32.2]} 25... Kg7 {[%clk 0:00:54.3]} 26. Rh7+ {[%clk 0:00:27.2]}
26... Kg8 {[%clk 0:00:54.6]} 27. Rh8+ {[%clk 0:00:13.3]} 27... Kg7 {[%clk
0:00:54.9]} 28. Rh7+ {[%clk 0:00:12.4]} 1/2-1/2

[Event "Late-Titled-Tuesday-Blitz-November-28-2023"]
[Site "Chess.com"]
[Date "2023.11.28"]
[Round "5"]
[White "slorovel"]
[Black "NikolaGry"]
[Result "0-1"]
[WhiteElo "2519"]
[BlackElo "2713"]
[TimeControl "180+1"]
[EndTime "14:52:46 PST"]
[Termination "NikolaGry won by resignation"]

1. e4 {[%clk 0:03:00.9]} 1... d5 {[%clk 0:02:59]} 2. exd5 {[%clk 0:03:00.5]}
2... Nf6 {[%clk 0:02:58.6]} 3. Nf3 {[%clk 0:03:00]} 3... Nxd5 {[%clk 0:02:57.8]}
4. d4 {[%clk 0:03:00.1]} 4... Bf5 {[%clk 0:02:56.3]} 5. Bd3 {[%clk 0:02:55.8]}
5... Bxd3 {[%clk 0:02:55.3]} 6. Qxd3 {[%clk 0:02:56.7]} 6... c6 {[%clk
0:02:55.7]} 7. O-O {[%clk 0:02:56.4]} 7... e6 {[%clk 0:02:55.9]} 8. c4 {[%clk
0:02:56.2]} 8... Nf6 {[%clk 0:02:55.7]} 9. Nc3 {[%clk 0:02:55.4]} 9... Be7
{[%clk 0:02:55.6]} 10. Bg5 {[%clk 0:02:55]} 10... O-O {[%clk 0:02:54.9]} 11.
Rfd1 {[%clk 0:02:54.8]} 11... Nbd7 {[%clk 0:02:54.8]} 12. Rac1 {[%clk
0:02:52.1]} 12... Re8 {[%clk 0:02:49.1]} 13. h3 {[%clk 0:02:51.2]} 13... Qa5
{[%clk 0:02:42]} 14. Bd2 {[%clk 0:02:48.7]} 14... Qa6 {[%clk 0:02:40.9]} 15. b3
{[%clk 0:02:41.5]} 15... Rad8 {[%clk 0:02:38.2]} 16. Qc2 {[%clk 0:02:40.6]}
16... Nf8 {[%clk 0:02:25.7]} 17. Be3 {[%clk 0:02:39.7]} 17... Ng6 {[%clk
0:02:23.6]} 18. a4 {[%clk 0:02:29.5]} 18... Qa5 {[%clk 0:02:16.9]} 19. Ne4
{[%clk 0:02:28.4]} 19... Nh5 {[%clk 0:01:39.3]} 20. Nc5 {[%clk 0:02:13.4]} 20...
Qc7 {[%clk 0:01:32]} 21. Nd3 {[%clk 0:02:08]} 21... Nhf4 {[%clk 0:01:24.7]} 22.
Nxf4 {[%clk 0:02:07.8]} 22... Nxf4 {[%clk 0:01:24.4]} 23. Ne5 {[%clk 0:02:01.7]}
23... Ng6 {[%clk 0:01:23.3]} 24. Nxg6 {[%clk 0:02:01.2]} 24... hxg6 {[%clk
0:01:22.8]} 25. Qe4 {[%clk 0:02:01]} 25... Bf6 {[%clk 0:01:21.1]} 26. Bf4 {[%clk
0:01:58.1]} 26... Qb6 {[%clk 0:01:18.9]} 27. c5 {[%clk 0:01:39.9]} 27... Qxb3
{[%clk 0:01:07.4]} 28. Rb1 {[%clk 0:01:40.2]} 28... Qxa4 {[%clk 0:01:05.4]} 29.
Ra1 {[%clk 0:01:40.3]} 29... Qc4 {[%clk 0:01:00.2]} 30. Rxa7 {[%clk 0:01:38.8]}
30... Bxd4 {[%clk 0:00:52.4]} 31. Kh2 {[%clk 0:01:32.1]} 31... Qd5 {[%clk
0:00:44.2]} 32. Qb1 {[%clk 0:01:27.6]} 32... Qxc5 {[%clk 0:00:36.4]} 33. Rxb7
{[%clk 0:01:22.6]} 33... Be5 {[%clk 0:00:36.1]} 34. Bxe5 {[%clk 0:01:19.9]}
34... Qxe5+ {[%clk 0:00:35.9]} 35. Kg1 {[%clk 0:01:20.5]} 35... Rd5 {[%clk
0:00:33.3]} 36. Rxd5 {[%clk 0:01:16.1]} 36... cxd5 {[%clk 0:00:31.5]} 37. Qb5
{[%clk 0:01:15.8]} 37... Rf8 {[%clk 0:00:30.6]} 38. Qd7 {[%clk 0:01:15.4]} 38...
Qe1+ {[%clk 0:00:29.9]} 39. Kh2 {[%clk 0:01:14.8]} 39... Qxf2 {[%clk 0:00:29.9]}
40. Rc7 {[%clk 0:01:14.6]} 40... Qf4+ {[%clk 0:00:29.2]} 41. Kh1 {[%clk
0:01:15]} 41... Rb8 {[%clk 0:00:26.3]} 42. Rc8+ {[%clk 0:01:14.9]} 42... Rxc8
{[%clk 0:00:26.4]} 43. Qxc8+ {[%clk 0:01:15.8]} 43... Kh7 {[%clk 0:00:26.5]} 44.
Qc2 {[%clk 0:01:15.5]} 44... d4 {[%clk 0:00:25.2]} 45. Kg1 {[%clk 0:01:16]}
45... Qe3+ {[%clk 0:00:25.1]} 46. Kf1 {[%clk 0:01:16.5]} 46... d3 {[%clk
0:00:25.3]} 47. Qf2 {[%clk 0:01:16.3]} 47... Qc1+ {[%clk 0:00:24.9]} 48. Qe1
{[%clk 0:01:16.2]} 48... d2 {[%clk 0:00:25]} 0-1

[Event "Late-Titled-Tuesday-Blitz-November-28-2023"]
[Site "Chess.com"]
[Date "2023.11.28"]
[Round "5"]
[White "Zavgorodniy_Sergiy"]
[Black "inagreV"]
[Result "1-0"]
[WhiteElo "2662"]
[BlackElo "2444"]
[TimeControl "180+1"]
[EndTime "14:52:50 PST"]
[Termination "Zavgorodniy_Sergiy won on time"]

1. d4 {[%clk 0:03:00.9]} 1... d5 {[%clk 0:02:56.4]} 2. c4 {[%clk 0:03:01.1]}
2... e6 {[%clk 0:02:56.5]} 3. Nf3 {[%clk 0:03:01.2]} 3... c6 {[%clk 0:02:56.8]}
4. e3 {[%clk 0:03:01.8]} 4... f5 {[%clk 0:02:55.9]} 5. g3 {[%clk 0:03:02.2]}
5... Bd6 {[%clk 0:02:52]} 6. Bg2 {[%clk 0:03:03.1]} 6... Nd7 {[%clk 0:02:52.1]}
7. O-O {[%clk 0:03:04]} 7... Ngf6 {[%clk 0:02:51.9]} 8. b3 {[%clk 0:03:04.9]}
8... Qe7 {[%clk 0:02:51.3]} 9. a4 {[%clk 0:03:04.8]} 9... a5 {[%clk 0:02:47.6]}
10. Ba3 {[%clk 0:03:05.3]} 10... b6 {[%clk 0:02:42.6]} 11. Bxd6 {[%clk
0:03:05.3]} 11... Qxd6 {[%clk 0:02:42.8]} 12. Nbd2 {[%clk 0:03:06.2]} 12... O-O
{[%clk 0:02:31]} 13. Qc2 {[%clk 0:03:06.7]} 13... Ba6 {[%clk 0:02:28.7]} 14. Qb2
{[%clk 0:03:07]} 14... Rab8 {[%clk 0:02:17.3]} 15. Rfd1 {[%clk 0:03:06.5]} 15...
Ne4 {[%clk 0:02:01.6]} 16. Rac1 {[%clk 0:03:06.6]} 16... Qb4 {[%clk 0:01:54.8]}
17. Ne1 {[%clk 0:03:06]} 17... Nxd2 {[%clk 0:01:50.6]} 18. Rxd2 {[%clk
0:03:05.1]} 18... dxc4 {[%clk 0:01:50.8]} 19. Bxc6 {[%clk 0:02:53.9]} 19... Rfc8
{[%clk 0:01:36.3]} 20. Bxd7 {[%clk 0:02:45.1]} 20... c3 {[%clk 0:01:36.2]} 21.
Bxe6+ {[%clk 0:02:42]} 21... Kh8 {[%clk 0:01:23.9]} 22. Rxc3 {[%clk 0:02:33]}
22... Qxc3 {[%clk 0:01:14.7]} 23. Bxc8 {[%clk 0:02:18.6]} 23... Rxc8 {[%clk
0:01:04.4]} 24. Kg2 {[%clk 0:02:02.7]} 24... Qb4 {[%clk 0:00:55.3]} 25. Nd3
{[%clk 0:01:53.5]} 25... Bb7+ {[%clk 0:00:44]} 26. f3 {[%clk 0:01:53.4]} 26...
Qe7 {[%clk 0:00:43]} 27. Ne5 {[%clk 0:01:53.6]} 27... Rd8 {[%clk 0:00:38.2]} 28.
Rc2 {[%clk 0:01:53.2]} 28... g5 {[%clk 0:00:20.2]} 29. Qc3 {[%clk 0:01:52.9]}
29... f4 {[%clk 0:00:19.3]} 30. exf4 {[%clk 0:01:50.2]} 30... gxf4 {[%clk
0:00:19.5]} 31. Qc7 {[%clk 0:01:49.9]} 31... Qxc7 {[%clk 0:00:12.8]} 32. Rxc7
{[%clk 0:01:50.8]} 32... Bd5 {[%clk 0:00:12.9]} 33. gxf4 {[%clk 0:01:50.6]}
33... Bxb3 {[%clk 0:00:12.2]} 34. Rb7 {[%clk 0:01:45.9]} 34... Rxd4 {[%clk
0:00:09.8]} 35. Rxb6 {[%clk 0:01:44.6]} 35... Bxa4 {[%clk 0:00:08.7]} 36. Rb8+
{[%clk 0:01:44.5]} 36... Kg7 {[%clk 0:00:08]} 37. Rb7+ {[%clk 0:01:44.7]} 37...
Kh6 {[%clk 0:00:07.6]} 38. Kg3 {[%clk 0:01:36.4]} 38... Bc2 {[%clk 0:00:07.3]}
39. Ra7 {[%clk 0:01:30.4]} 39... a4 {[%clk 0:00:07.3]} 40. Kg4 {[%clk
0:01:28.1]} 40... Rd1 {[%clk 0:00:01.1]} 41. Ra6+ {[%clk 0:01:25.8]} 1-0

[Event "Late-Titled-Tuesday-Blitz-November-28-2023"]
[Site "Chess.com"]
[Date "2023.11.28"]
[Round "5"]
[White "The_Straightforward_Rook"]
[Black "CheckThis4"]
[Result "0-1"]
[WhiteElo "2463"]
[BlackElo "2716"]
[TimeControl "180+1"]
[EndTime "14:52:55 PST"]
[Termination "CheckThis4 won by resignation"]

1. e4 {[%clk 0:03:00.9]} 1... Nc6 {[%clk 0:02:59.1]} 2. Nf3 {[%clk 0:02:58.6]}
2... e5 {[%clk 0:02:58.8]} 3. Bc4 {[%clk 0:02:58]} 3... Nf6 {[%clk 0:02:57.1]}
4. d3 {[%clk 0:02:58.5]} 4... Bc5 {[%clk 0:02:53.9]} 5. Bg5 {[%clk 0:02:58.8]}
5... h6 {[%clk 0:02:47.9]} 6. Bh4 {[%clk 0:02:58.8]} 6... g5 {[%clk 0:02:43.3]}
7. Bg3 {[%clk 0:02:59]} 7... d6 {[%clk 0:02:42.2]} 8. c3 {[%clk 0:02:59.1]} 8...
Qe7 {[%clk 0:02:34.2]} 9. a4 {[%clk 0:02:56.1]} 9... a6 {[%clk 0:02:31.6]} 10.
Nbd2 {[%clk 0:02:52.4]} 10... Ba7 {[%clk 0:02:31.1]} 11. O-O {[%clk 0:02:50.5]}
11... Bg4 {[%clk 0:02:07.5]} 12. Kh1 {[%clk 0:02:40.2]} 12... h5 {[%clk
0:02:04]} 13. h3 {[%clk 0:02:35.8]} 13... h4 {[%clk 0:01:57.1]} 14. Bh2 {[%clk
0:02:30.8]} 14... Bh5 {[%clk 0:01:56.6]} 15. Bd5 {[%clk 0:02:18.8]} 15... g4
{[%clk 0:01:42]} 16. hxg4 {[%clk 0:02:15]} 16... Bxg4 {[%clk 0:01:39.4]} 17. Qb3
{[%clk 0:01:59.2]} 17... Na5 {[%clk 0:01:38.9]} 18. Qc2 {[%clk 0:01:55.7]} 18...
h3 {[%clk 0:01:37.8]} 19. b4 {[%clk 0:01:43.4]} 19... hxg2+ {[%clk 0:01:35.2]}
20. Kxg2 {[%clk 0:01:42.4]} 20... Bh3+ {[%clk 0:01:30]} 21. Kh1 {[%clk
0:01:42.8]} 21... Nxd5 {[%clk 0:01:23.8]} 22. exd5 {[%clk 0:01:40.1]} 22... Bxf1
{[%clk 0:01:17]} 23. Rxf1 {[%clk 0:01:41]} 23... Qd7 {[%clk 0:00:54.7]} 24. Ne4
{[%clk 0:01:29.6]} 24... O-O-O {[%clk 0:00:48.6]} 25. bxa5 {[%clk 0:01:21.7]}
25... Qh3 {[%clk 0:00:44]} 26. Qe2 {[%clk 0:01:16.7]} 26... Rdg8 {[%clk
0:00:41.1]} 27. Rg1 {[%clk 0:01:13.4]} 27... f5 {[%clk 0:00:39.3]} 28. Neg5
{[%clk 0:01:11.7]} 28... Qh5 {[%clk 0:00:32.6]} 29. Rg2 {[%clk 0:01:01.9]} 29...
Rg6 {[%clk 0:00:25.5]} 30. Ng1 {[%clk 0:00:26.7]} 30... Rxg5 {[%clk 0:00:20.6]}
0-1

[Event "Late-Titled-Tuesday-Blitz-November-28-2023"]
[Site "Chess.com"]
[Date "2023.11.28"]
[Round "5"]
[White "Hilary46"]
[Black "K_A_S_T_O_R"]
[Result "0-1"]
[WhiteElo "2628"]
[BlackElo "2897"]
[TimeControl "180+1"]
[EndTime "14:53:00 PST"]
[Termination "K_A_S_T_O_R won by resignation"]

1. e4 {[%clk 0:02:56.4]} 1... c5 {[%clk 0:02:58]} 2. Nf3 {[%clk 0:02:56.9]} 2...
d6 {[%clk 0:02:58]} 3. d4 {[%clk 0:02:57.5]} 3... cxd4 {[%clk 0:02:58.5]} 4.
Nxd4 {[%clk 0:02:58.4]} 4... Nf6 {[%clk 0:02:58.8]} 5. Nc3 {[%clk 0:02:59]} 5...
a6 {[%clk 0:02:59.3]} 6. Bg5 {[%clk 0:02:59.6]} 6... e6 {[%clk 0:02:59.5]} 7. f4
{[%clk 0:03:00.2]} 7... Nbd7 {[%clk 0:02:59.6]} 8. Qf3 {[%clk 0:02:56.4]} 8...
Qc7 {[%clk 0:02:59.7]} 9. O-O-O {[%clk 0:02:56.1]} 9... b5 {[%clk 0:02:59.9]}
10. e5 {[%clk 0:02:55.3]} 10... Bb7 {[%clk 0:02:59.5]} 11. Qh3 {[%clk
0:02:55.9]} 11... dxe5 {[%clk 0:03:00.1]} 12. Nxe6 {[%clk 0:02:56.4]} 12... fxe6
{[%clk 0:03:00.8]} 13. Qxe6+ {[%clk 0:02:56.8]} 13... Be7 {[%clk 0:03:01.4]} 14.
Bxf6 {[%clk 0:02:57.3]} 14... gxf6 {[%clk 0:03:00.6]} 15. Bxb5 {[%clk
0:02:57.3]} 15... axb5 {[%clk 0:02:55]} 16. Nxb5 {[%clk 0:02:58.2]} 16... Qc6
{[%clk 0:02:55.1]} 17. Nd6+ {[%clk 0:02:58.5]} 17... Qxd6 {[%clk 0:02:55.1]} 18.
Rxd6 {[%clk 0:02:56.7]} 18... Nc5 {[%clk 0:02:55.2]} 19. Qg4 {[%clk 0:01:40.9]}
19... Bxd6 {[%clk 0:02:51.3]} 20. Qg7 {[%clk 0:01:40.1]} 20... O-O-O {[%clk
0:02:45.6]} 21. f5 {[%clk 0:01:08.2]} 21... Ne4 {[%clk 0:02:28.8]} 22. Rd1
{[%clk 0:00:56.1]} 22... Bc5 {[%clk 0:02:25.8]} 23. Rxd8+ {[%clk 0:00:54.3]}
23... Rxd8 {[%clk 0:02:24.7]} 24. Qh6 {[%clk 0:00:33.6]} 24... Nf2 {[%clk
0:02:05.3]} 25. c3 {[%clk 0:00:28.3]} 25... Be4 {[%clk 0:01:55.7]} 26. b4 {[%clk
0:00:28.5]} 26... Ng4 {[%clk 0:01:31.5]} 27. Qxh7 {[%clk 0:00:25.6]} 27... Be3+
{[%clk 0:01:28.7]} 28. Kb2 {[%clk 0:00:24]} 28... Bg5 {[%clk 0:01:21.7]} 29. h4
{[%clk 0:00:09.7]} 29... Bf4 {[%clk 0:01:17.3]} 30. h5 {[%clk 0:00:05.6]} 30...
Ne3 {[%clk 0:01:08.6]} 31. h6 {[%clk 0:00:04.8]} 31... Rd2+ {[%clk 0:01:07.3]}
32. Ka3 {[%clk 0:00:02.9]} 32... Bd5 {[%clk 0:01:06.1]} 33. Qh8+ {[%clk
0:00:02.7]} 33... Kc7 {[%clk 0:01:00.9]} 34. Qg7+ {[%clk 0:00:03.6]} 34... Kc6
{[%clk 0:00:58.6]} 35. Qxf6+ {[%clk 0:00:03.9]} 35... Kb5 {[%clk 0:00:59]} 36.
Qa6+ {[%clk 0:00:01.3]} 36... Kxa6 {[%clk 0:00:58.6]} 0-1

[Event "Late-Titled-Tuesday-Blitz-November-28-2023"]
[Site "Chess.com"]
[Date "2023.11.28"]
[Round "5"]
[White "NateSolon"]
[Black "kai_nov"]
[Result "1-0"]
[WhiteElo "2677"]
[BlackElo "2280"]
[TimeControl "180+1"]
[EndTime "14:53:00 PST"]
[Termination "NateSolon won on time"]

1. d4 {[%clk 0:03:00.9]} 1... Nf6 {[%clk 0:02:53.8]} 2. Bf4 {[%clk 0:03:00.1]}
2... b6 {[%clk 0:02:52.8]} 3. Nc3 {[%clk 0:02:58.6]} 3... Bb7 {[%clk 0:02:52.3]}
4. f3 {[%clk 0:02:58.8]} 4... Nh5 {[%clk 0:02:37.4]} 5. Bg5 {[%clk 0:02:48.2]}
5... h6 {[%clk 0:02:34]} 6. Bh4 {[%clk 0:02:48.4]} 6... g5 {[%clk 0:02:33.7]} 7.
Bf2 {[%clk 0:02:48.7]} 7... Bg7 {[%clk 0:02:23.7]} 8. e4 {[%clk 0:02:48.5]} 8...
d6 {[%clk 0:02:22.9]} 9. h4 {[%clk 0:02:45.5]} 9... Nd7 {[%clk 0:02:05.8]} 10.
Qd2 {[%clk 0:02:32.3]} 10... e6 {[%clk 0:01:50.4]} 11. O-O-O {[%clk 0:02:30.6]}
11... f5 {[%clk 0:01:10.5]} 12. exf5 {[%clk 0:02:27]} 12... exf5 {[%clk
0:01:10.1]} 13. Re1+ {[%clk 0:02:24.1]} 13... Kf8 {[%clk 0:01:06.4]} 14. Nh3
{[%clk 0:02:07.6]} 14... f4 {[%clk 0:00:59.5]} 15. Bd3 {[%clk 0:01:58.2]} 15...
Qf6 {[%clk 0:00:44.3]} 16. Ne4 {[%clk 0:01:31]} 16... Bxe4 {[%clk 0:00:42.9]}
17. Bxe4 {[%clk 0:01:31.9]} 17... Re8 {[%clk 0:00:21.9]} 18. Bc6 {[%clk
0:01:31.1]} 18... Qf5 {[%clk 0:00:17.4]} 19. Rxe8+ {[%clk 0:00:56.6]} 19... Kxe8
{[%clk 0:00:16.6]} 20. Re1+ {[%clk 0:00:57.2]} 20... Kd8 {[%clk 0:00:13.9]} 21.
Qe2 {[%clk 0:00:56]} 21... Bf6 {[%clk 0:00:10.4]} 22. Qa6 {[%clk 0:00:49]} 22...
Nb8 {[%clk 0:00:07.9]} 23. Qb7 {[%clk 0:00:42.3]} 23... Nxc6 {[%clk 0:00:07.9]}
24. Qxc6 {[%clk 0:00:43.2]} 24... Qc8 {[%clk 0:00:03.9]} 25. Qe4 {[%clk
0:00:30.2]} 25... Qd7 {[%clk 0:00:02.3]} 26. Qg6 {[%clk 0:00:28.8]} 1-0

[Event "Late-Titled-Tuesday-Blitz-November-28-2023"]
[Site "Chess.com"]
[Date "2023.11.28"]
[Round "5"]
[White "FM_Kappeler"]
[Black "nindjaxx8"]
[Result "1-0"]
[WhiteElo "2324"]
[BlackElo "2450"]
[TimeControl "180+1"]
[EndTime "14:53:01 PST"]
[Termination "FM_Kappeler won by checkmate"]

1. d4 {[%clk 0:03:00.9]} 1... d5 {[%clk 0:02:58.6]} 2. c4 {[%clk 0:03:01]} 2...
e6 {[%clk 0:02:57.8]} 3. Nf3 {[%clk 0:03:01.2]} 3... Nf6 {[%clk 0:02:57.5]} 4.
g3 {[%clk 0:03:01.8]} 4... Be7 {[%clk 0:02:58.1]} 5. Bg2 {[%clk 0:03:02.3]} 5...
O-O {[%clk 0:02:58.7]} 6. O-O {[%clk 0:03:02.7]} 6... b6 {[%clk 0:02:59.1]} 7.
Nbd2 {[%clk 0:03:01.4]} 7... Bb7 {[%clk 0:02:59.5]} 8. Qc2 {[%clk 0:03:01.2]}
8... Nbd7 {[%clk 0:02:57.1]} 9. cxd5 {[%clk 0:02:55.3]} 9... Nxd5 {[%clk
0:02:56.3]} 10. e4 {[%clk 0:02:52.1]} 10... Nb4 {[%clk 0:02:54.1]} 11. Qb3
{[%clk 0:02:47.9]} 11... Na6 {[%clk 0:02:47.7]} 12. Re1 {[%clk 0:02:41.8]} 12...
c5 {[%clk 0:02:47.1]} 13. d5 {[%clk 0:02:39.8]} 13... exd5 {[%clk 0:02:47]} 14.
exd5 {[%clk 0:02:39.8]} 14... Nf6 {[%clk 0:02:47.3]} 15. Ne5 {[%clk 0:02:14.2]}
15... Nxd5 {[%clk 0:02:41.5]} 16. Ndc4 {[%clk 0:01:50.5]} 16... Nac7 {[%clk
0:02:40.1]} 17. Na5 {[%clk 0:01:47.4]} 17... bxa5 {[%clk 0:02:24.6]} 18. Qxb7
{[%clk 0:01:46.4]} 18... Bf6 {[%clk 0:01:46]} 19. Nc6 {[%clk 0:01:37.3]} 19...
Qd6 {[%clk 0:01:40.4]} 20. Rd1 {[%clk 0:01:22]} 20... Qe6 {[%clk 0:00:47.9]} 21.
Bd2 {[%clk 0:00:58.8]} 21... Rac8 {[%clk 0:00:11.1]} 22. Bxa5 {[%clk 0:00:52.1]}
22... Rfe8 {[%clk 0:00:07.5]} 23. Re1 {[%clk 0:00:49]} 23... Qf5 {[%clk
0:00:04.8]} 24. Rxe8+ {[%clk 0:00:44]} 24... Rxe8 {[%clk 0:00:05.3]} 25. Bxc7
{[%clk 0:00:43.8]} 25... Qd7 {[%clk 0:00:04.6]} 26. Bxd5 {[%clk 0:00:41]} 26...
Qxd5 {[%clk 0:00:05.2]} 27. Ne7+ {[%clk 0:00:39.8]} 27... Rxe7 {[%clk 0:00:04]}
28. Qxd5 {[%clk 0:00:39.7]} 28... Re2 {[%clk 0:00:04.9]} 29. Qa8+ {[%clk
0:00:37.1]} 29... Re8 {[%clk 0:00:05.8]} 30. Qxe8# {[%clk 0:00:36.8]} 1-0

[Event "Late-Titled-Tuesday-Blitz-November-28-2023"]
[Site "Chess.com"]
[Date "2023.11.28"]
[Round "5"]
[White "NCchamp"]
[Black "Redzishchess"]
[Result "1-0"]
[WhiteElo "2371"]
[BlackElo "2505"]
[TimeControl "180+1"]
[EndTime "14:53:02 PST"]
[Termination "NCchamp won on time"]

1. e4 {[%clk 0:02:57.6]} 1... c5 {[%clk 0:02:22.5]} 2. Nc3 {[%clk 0:02:56.4]}
2... Nc6 {[%clk 0:02:19.9]} 3. Bb5 {[%clk 0:02:55.7]} 3... g6 {[%clk 0:02:17]}
4. Bxc6 {[%clk 0:02:54.9]} 4... dxc6 {[%clk 0:02:15.8]} 5. d3 {[%clk 0:02:54]}
5... Bg7 {[%clk 0:02:15.6]} 6. f4 {[%clk 0:02:53.8]} 6... e5 {[%clk 0:02:13]} 7.
Nf3 {[%clk 0:02:53.6]} 7... exf4 {[%clk 0:02:06.5]} 8. Bxf4 {[%clk 0:02:54.5]}
8... Ne7 {[%clk 0:02:05]} 9. O-O {[%clk 0:02:54.1]} 9... O-O {[%clk 0:02:04.7]}
10. Kh1 {[%clk 0:02:52.8]} 10... Bg4 {[%clk 0:01:51.4]} 11. h3 {[%clk
0:02:48.6]} 11... Bxf3 {[%clk 0:01:51.4]} 12. Rxf3 {[%clk 0:02:45.2]} 12... f5
{[%clk 0:01:37]} 13. Qe2 {[%clk 0:02:18.2]} 13... Qd7 {[%clk 0:01:27.1]} 14. Re1
{[%clk 0:02:11.4]} 14... Rae8 {[%clk 0:01:21.6]} 15. e5 {[%clk 0:02:04.6]} 15...
Nd5 {[%clk 0:01:21.1]} 16. Nxd5 {[%clk 0:01:55.2]} 16... cxd5 {[%clk 0:01:22]}
17. d4 {[%clk 0:01:47]} 17... cxd4 {[%clk 0:01:16]} 18. Rd3 {[%clk 0:01:42.7]}
18... Qa4 {[%clk 0:00:28.8]} 19. b3 {[%clk 0:01:06.7]} 19... Qb4 {[%clk
0:00:21.1]} 20. a3 {[%clk 0:00:51]} 20... Qb6 {[%clk 0:00:11.8]} 21. Qd2 {[%clk
0:00:46.6]} 21... g5 {[%clk 0:00:04]} 22. Bh2 {[%clk 0:00:26.1]} 22... f4 {[%clk
0:00:02.1]} 23. Rxd4 {[%clk 0:00:26.4]} 1-0

[Event "Late-Titled-Tuesday-Blitz-November-28-2023"]
[Site "Chess.com"]
[Date "2023.11.28"]
[Round "5"]
[White "gahryman"]
[Black "GiorgianBarbosa"]
[Result "1-0"]
[WhiteElo "2698"]
[BlackElo "2536"]
[TimeControl "180+1"]
[EndTime "14:53:04 PST"]
[Termination "gahryman won by checkmate"]

1. e4 {[%clk 0:03:00.9]} 1... c5 {[%clk 0:02:58.8]} 2. Nc3 {[%clk 0:03:00.5]}
2... g6 {[%clk 0:02:59.4]} 3. h4 {[%clk 0:02:58.1]} 3... Bg7 {[%clk 0:02:59.3]}
4. h5 {[%clk 0:02:58.5]} 4... Nc6 {[%clk 0:02:59.9]} 5. Bc4 {[%clk 0:02:52.3]}
5... e6 {[%clk 0:02:56.7]} 6. d3 {[%clk 0:02:52.2]} 6... Nge7 {[%clk 0:02:55.1]}
7. h6 {[%clk 0:02:38.4]} 7... Be5 {[%clk 0:02:52.1]} 8. Nf3 {[%clk 0:02:37.6]}
8... Bc7 {[%clk 0:02:51.6]} 9. Bg5 {[%clk 0:02:37.2]} 9... a6 {[%clk 0:02:32.9]}
10. Bf6 {[%clk 0:02:36.9]} 10... O-O {[%clk 0:02:31.2]} 11. a3 {[%clk
0:02:21.4]} 11... b5 {[%clk 0:02:28.1]} 12. Ba2 {[%clk 0:02:21.4]} 12... d6
{[%clk 0:02:09.5]} 13. Qd2 {[%clk 0:02:21]} 13... b4 {[%clk 0:01:56.4]} 14. axb4
{[%clk 0:02:16.2]} 14... cxb4 {[%clk 0:01:57.3]} 15. Nd1 {[%clk 0:02:15.5]}
15... d5 {[%clk 0:01:40.2]} 16. Qg5 {[%clk 0:02:09.7]} 16... Qd6 {[%clk
0:01:25.1]} 17. e5 {[%clk 0:02:03.9]} 17... Qd7 {[%clk 0:01:18.5]} 18. Ne3
{[%clk 0:02:03.4]} 18... Bd8 {[%clk 0:00:57.7]} 19. Ng4 {[%clk 0:02:02.2]} 19...
Nf5 {[%clk 0:00:52.7]} 20. Bb3 {[%clk 0:01:52.5]} 20... a5 {[%clk 0:00:46.6]}
21. Ba4 {[%clk 0:01:52.1]} 21... Bb7 {[%clk 0:00:45.8]} 22. Bxd8 {[%clk
0:01:28]} 22... Qxd8 {[%clk 0:00:44.1]} 23. Nf6+ {[%clk 0:01:28.6]} 23... Kh8
{[%clk 0:00:43.1]} 24. Bxc6 {[%clk 0:01:23.1]} 24... Bxc6 {[%clk 0:00:41.8]} 25.
g4 {[%clk 0:01:09.7]} 25... d4 {[%clk 0:00:37]} 26. Rh3 {[%clk 0:01:09.5]} 26...
Bxf3 {[%clk 0:00:31.4]} 27. Rxf3 {[%clk 0:01:09]} 27... Ne7 {[%clk 0:00:31.1]}
28. Nd7 {[%clk 0:01:05.2]} 28... f6 {[%clk 0:00:16.9]} 29. exf6 {[%clk
0:01:01.4]} 29... Nd5 {[%clk 0:00:08.7]} 30. Nxf8 {[%clk 0:00:56.2]} 30... Qxf8
{[%clk 0:00:09.6]} 31. f7 {[%clk 0:00:56.4]} 31... Qd6 {[%clk 0:00:03.5]} 32.
Kf1 {[%clk 0:00:50.8]} 32... Rf8 {[%clk 0:00:03.9]} 33. Rxa5 {[%clk 0:00:49.3]}
33... e5 {[%clk 0:00:04]} 34. Rxd5 {[%clk 0:00:45.8]} 34... Qxd5 {[%clk
0:00:04.9]} 35. Qf6# {[%clk 0:00:45.2]} 1-0